bitfinex/quotes_SOLUSD_20250424
["timestamp","ask_amount","ask_price","bid_price","bid_amount"]
[1745520975704,0.03,151.87,151.86,1.64612697]
[1745520977437,0.03,151.87,151.86,12.96506449]
[1745520978838,0.03,151.87,151.86,17.82221144]
[1745520980508,0.03,151.87,151.86,12.96506449]
[1745520980913,0.03,151.87,151.86,19.550077]
[1745520982334,0.03,151.87,151.86,12.96506449]
[1745520982949,0.03,151.87,151.86,17.81977602]
[1745520983737,0.03,151.87,151.86,24.40478853]
[1745520983945,0.03,151.87,151.86,19.550077]
[1745520984537,0.03,151.87,151.86,38.34188743]
[1745520985126,0.03,151.87,151.86,12.96506449]
[1745520985325,0.03,151.87,151.86,19.550077]
[1745520985535,0.03,151.87,151.86,24.39877061]
[1745520987337,0.03,151.87,151.86,17.8137581]
[1745520988320,0.03,151.87,151.86,12.96506449]
[1745520988520,0.03,151.87,151.86,19.550077]
[1745520989026,0.03,151.87,151.86,12.96506449]
[1745520991040,0.03,151.87,151.86,19.550077]
[1745520992238,0.03,151.87,151.86,12.96506449]
[1745520992444,0.03,151.87,151.86,1.64612697]
[1745520993729,0.03,151.87,151.85,11.31893752]
[1745520994228,0.03,151.87,151.84,11.31893752]
[1745520994428,11.34893752,151.87,151.83,11.31893752]
[1745520994933,11.34893752,151.87,151.84,1.64599034]
[1745520996022,11.34893752,151.87,151.83,11.31893752]
[1745520998354,11.34893752,151.87,151.84,1.64601766]
[1745520998953,0.03,151.87,151.84,1.64601766]
[1745520999551,0.03,151.87,151.83,11.31893752]
[1745521001369,94.04893752,151.87,151.83,11.31893752]
[1745521001541,100.63365728,151.87,151.82,11.31893752]
[1745521001728,94.04893752,151.87,151.82,11.31893752]
[1745521001927,100.63363376,151.87,151.83,1.64601784]
[1745521003260,100.63363376,151.87,151.84,1.64601784]
[1745521003960,100.63363376,151.87,151.85,1.64601784]
[1745521005141,100.63363376,151.87,151.86,1.64601784]
[1745521006349,100.63363376,151.87,151.82,11.31893752]
[1745521006654,100.63363376,151.87,151.83,2.43079971]
[1745521007154,100.63363376,151.87,151.84,6.50843085]
[1745521007534,11.31893752,151.86,151.84,6.50843085]
[1745521007940,17.90397119,151.86,151.84,6.50843085]
[1745521008139,17.90397119,151.86,151.84,1.64601766]
[1745521008140,94.01893752,151.85,151.84,1.64601766]
[1745521010432,82.7,151.85,151.84,1.64601766]
[1745521011051,82.7,151.85,151.84,12.96495518]
[1745521011540,82.7,151.85,151.84,1.64601766]
[1745521019339,82.7,151.85,151.84,12.96495518]
[1745521019537,0.03,151.87,151.84,17.82756243]
[1745521020339,0.03,151.87,151.84,12.96495518]
[1745521020539,0.03,151.87,151.85,1.64601766]
[1745521020758,11.34893752,151.87,151.85,1.64601766]
[1745521020966,11.31893752,151.86,151.85,1.64601766]
[1745521021552,11.34893752,151.87,151.85,1.64601766]
[1745521022657,11.34893752,151.87,151.83,11.31893752]
[1745521023465,11.34893752,151.87,151.84,1.64616079]
[1745521024669,0.03,151.87,151.85,1.64616079]
[1745521025568,82.7,151.86,151.83,11.31893752]
[1745521026259,82.7,151.86,151.84,4.86393876]
[1745521026667,82.7,151.86,151.85,1.64605332]
[1745521026973,82.7,151.86,151.85,19.550437]
[1745521027866,0.03,151.87,151.85,21.98195231]
[1745521028049,0.03,151.87,151.86,16.18488981]
[1745521029392,11.34893752,151.87,151.86,6.51200561]
[1745521030051,11.34893752,151.87,151.86,1.64605332]
[1745521030269,11.34893752,151.87,151.82,11.31893752]
[1745521031176,11.34893752,151.87,151.83,6.51801073]
[1745521031377,82.7,151.86,151.83,6.51801073]
[1745521032060,94.01893752,151.86,151.84,1.64619651]
[1745521032980,94.01893752,151.86,151.85,1.64619651]
[1745521033663,82.7,151.86,151.85,1.64619651]
[1745521035177,82.7,151.86,151.85,6.52082081]
[1745521037886,94.01893752,151.86,151.85,6.52082081]
[1745521038185,100.60395003,151.86,151.85,6.52082081]
[1745521038686,94.01893752,151.86,151.85,6.52082081]
[1745521041394,100.60395003,151.86,151.85,6.52082081]
[1745521041592,100.60395003,151.86,151.85,1.64619651]
[1745521042676,94.01893752,151.86,151.85,1.64619651]
[1745521043087,11.31893752,151.86,151.85,1.64619651]
[1745521043698,17.90395003,151.86,151.85,1.64619651]
[1745521045094,11.31893752,151.86,151.85,1.64619651]
[1745521045690,17.90395003,151.86,151.85,1.64619651]
[1745521048187,43.90395003,151.86,151.79,11.31893752]
[1745521048387,11.31893752,151.82,151.8,2.44408329]
[1745521048569,11.31893752,151.81,151.8,2.44408329]
[1745521048986,17.90611886,151.81,151.8,2.44408329]
[1745521049492,17.90579199,151.82,151.8,1.64661615]
[1745521049891,17.90579199,151.82,151.81,1.64661615]
[1745521050280,11.31893752,151.83,151.81,1.64661615]
[1745521050692,31.54495376,151.84,151.81,1.64661615]
[1745521050997,31.54495376,151.84,151.79,11.31893752]
[1745521051371,11.31893752,151.82,151.78,11.38193752]
[1745521051571,11.31893752,151.82,151.79,4.88474117]
[1745521051866,11.31893752,151.82,151.8,1.64656862]
[1745521053096,11.31893752,151.83,151.81,1.64657657]
[1745521053280,24.95893752,151.84,151.81,1.64657657]
[1745521053796,11.31893752,151.83,151.81,1.64657657]
[1745521053998,11.31893752,151.82,151.81,1.64657657]
[1745521056801,11.31893752,151.82,151.78,0.063]
[1745521057578,11.31893752,151.82,151.79,1.64662751]
[1745521058088,11.31893752,151.8,151.79,1.64662751]
[1745521060609,94.01893752,151.81,151.78,0.063]
[1745521060902,82.7,151.81,151.78,11.38193752]
[1745521061204,82.7,151.81,151.78,0.063]
[1745521061580,82.7,151.81,151.78,11.38193752]
[1745521062290,82.7,151.81,151.79,11.31893752]
[1745521063014,82.7,151.81,151.8,1.6466088]
[1745521072820,82.7,151.86,151.8,12.96554632]
[1745521073017,0.03,151.87,151.85,11.31893752]
[1745521073314,82.73,151.87,151.85,11.31893752]
[1745521074119,82.73,151.87,151.86,1.6466088]
[1745521075818,0.03,151.87,151.86,12.96554632]
[1745521077594,0.03,151.87,151.86,19.55055883]
[1745521080536,0.03,151.87,151.86,1.6466088]
[1745521082209,0.03,151.87,151.86,12.96554632]
[1745521085725,0.03,151.87,151.86,1.6466088]
[1745521085925,0.03,151.87,151.86,12.96554632]
[1745521086508,0.03,151.87,151.86,19.55055883]
[1745521086825,0.03,151.87,151.86,12.96554632]
[1745521087235,0.03,151.87,151.86,19.55055883]
[1745521087539,0.03,151.87,151.86,12.96554632]
[1745521093123,0.03,151.87,151.86,19.55055883]
[1745521095829,0.03,151.87,151.86,38.34236926]
[1745521096035,0.03,151.87,151.86,43.1892225]
[1745521096538,0.03,151.87,151.86,45.61263929]
[1745521097839,0.03,151.87,151.86,43.1892225]
[1745521099138,0.03,151.87,151.86,12.96554632]
[1745521103842,0.03,151.87,151.86,19.55055883]
[1745521108251,0.03,151.87,151.86,24.40758388]
[1745521109463,0.03,151.87,151.86,26.83678674]
[1745521111550,0.03,151.87,151.86,20.25177423]
[1745521112461,0.03,151.87,151.86,26.83678674]
[1745521113032,0.03,151.87,151.86,20.25177423]
[1745521113958,0.03,151.87,151.86,26.83678674]
[1745521117372,0.03,151.87,151.86,8.93283671]
[1745521118763,0.03,151.87,151.86,20.25177423]
[1745521120654,0.03,151.87,151.86,26.83678674]
[1745521127787,0.03,151.87,151.86,45.4864356]
[1745521128081,0.03,151.87,151.86,45.62859717]
[1745521131080,0.03,151.87,151.86,20.25177423]
[1745521135787,0.03,151.87,151.86,26.83678674]
[1745521139569,0.03,151.87,151.86,8.93283671]
[1745521140479,0.03,151.87,151.86,7.28622791]
[1745521140670,0.03,151.87,151.86,2.42920286]
[1745521140873,0.03,151.87,151.85,11.31893752]
[1745521141071,0.03,151.87,151.86,11.31893752]
[1745521141686,0.03,151.87,151.86,13.76207455]
[1745521141886,0.03,151.87,151.86,18.64845157]
[1745521144170,0.03,151.87,151.86,25.23346408]
[1745521144691,0.03,151.87,151.86,18.64845157]
[1745521145371,0.03,151.87,151.86,25.23346408]
[1745521149195,0.03,151.87,151.86,18.64845157]
[1745521149379,0.03,151.87,151.86,25.23346408]
[1745521149878,0.03,151.87,151.86,26.87903033]
[1745521150484,0.03,151.87,151.86,45.67084076]
[1745521157694,0.03,151.87,151.86,47.20434076]
[1745521157896,0.03,151.87,151.86,60.80434076]
[1745521158284,0.03,151.91,151.9,11.31893752]
[1745521158706,0.03,151.91,151.9,16.20531454]
[1745521159003,0.03,151.91,151.9,18.64845157]
[1745521160181,0.03,151.91,151.9,25.23173004]
[1745521162402,0.03,151.91,151.9,44.02354047]
[1745521162798,0.03,151.91,151.9,7.32951405]
[1745521163006,0.03,151.91,151.9,18.64845157]
[1745521166809,0.03,151.91,151.9,25.23173004]
[1745521167311,0.03,151.91,151.9,18.64845157]
[1745521168726,0.03,151.91,151.9,7.32951405]
[1745521168894,11.34893752,151.91,151.9,7.32951405]
[1745521169094,0.03,151.91,151.9,7.32951405]
[1745521169485,94.04893752,151.91,151.9,7.32951405]
[1745521169714,95.70383752,151.91,151.9,7.32951405]
[1745521169923,95.70383752,151.91,151.9,4.88637702]
[1745521170592,95.70383752,151.91,151.87,4.88637702]
[1745521171210,95.70383752,151.91,151.87,16.20531454]
[1745521171413,82.73,151.91,151.88,16.20531454]
[1745521171909,82.73,151.91,151.88,4.88637702]
[1745521172291,94.04893752,151.91,151.88,4.88637702]
[1745521172632,11.31893752,151.9,151.89,4.88637702]
[1745521172919,94.04893752,151.91,151.89,4.88637702]
[1745521173284,94.04893752,151.91,151.86,11.31893752]
[1745521174193,94.04893752,151.91,151.87,4.8813871]
[1745521174523,94.04893752,151.91,151.87,7.32232826]
[1745521174889,82.73,151.91,151.88,4.8813871]
[1745521175094,82.73,151.91,151.88,16.20032462]
[1745521175599,82.73,151.91,151.88,22.78422665]
[1745521176120,82.73,151.91,151.89,4.8813871]
[1745521177012,82.73,151.91,151.9,4.8813871]
[1745521177219,0.03,151.91,151.9,4.8813871]
[1745521178122,0.03,151.91,151.88,11.31893752]
[1745521178308,0.03,151.91,151.87,17.90331739]
[1745521178824,0.03,151.91,151.88,18.6411579]
[1745521179420,0.03,151.91,151.88,16.20040237]
[1745521179914,0.03,151.91,151.89,4.88146485]
[1745521180915,0.03,151.91,151.87,17.90340489]
[1745521181519,0.03,151.91,151.88,4.88189114]
[1745521182414,0.03,151.91,151.89,16.20082866]
[1745521182724,0.03,151.91,151.9,2.43968671]
[1745521183218,0.03,151.91,151.9,7.32157785]
[1745521186302,11.34893752,151.91,151.9,7.32157785]
[1745521186698,11.34893752,151.91,151.9,4.88189114]
[1745521187526,11.34893752,151.91,151.86,17.90390028]
[1745521187713,11.34893752,151.91,151.87,2.44093559]
[1745521188210,11.31893752,151.9,151.87,2.44093559]
[1745521188518,11.31893752,151.89,151.88,4.88206085]
[1745521188704,11.31893752,151.89,151.88,7.32299644]
[1745521189515,11.31893752,151.89,151.88,4.88206085]
[1745521190032,82.73,151.91,151.88,4.88206085]
[1745521190221,82.73,151.91,151.86,11.31893752]
[1745521190427,82.73,151.91,151.87,11.31893752]
[1745521190626,82.73,151.91,151.89,11.31893752]
[1745521192129,82.73,151.91,151.9,4.88046185]
[1745521192332,0.03,151.91,151.9,4.88046185]
[1745521194931,11.34893752,151.91,151.9,4.88046185]
[1745521195136,0.03,151.91,151.9,4.88046185]
[1745521198433,0.03,151.91,151.87,17.90341903]
[1745521198825,0.03,151.91,151.87,11.31893752]
[1745521199333,0.03,151.91,151.88,16.20116439]
[1745521199543,0.03,151.91,151.89,2.44091491]
[1745521200337,0.03,151.91,151.9,4.88222687]
[1745521200541,0.03,151.91,151.9,18.6420793]
[1745521200916,0.03,151.91,151.9,44.0171682]
[1745521201344,0.03,151.91,151.9,95.86411828]
[1745521201528,0.03,151.91,151.9,50.5883682]
[1745521202244,0.03,151.91,151.9,25.22535777]
[1745521202629,0.03,151.91,151.9,44.0171682]
[1745521202828,0.03,151.92,151.91,18.79181043]
[1745521203038,0.03,151.93,151.92,77.04969803]
[1745521203343,0.03,151.93,151.92,79.49061294]
[1745521203726,0.03,151.93,151.92,34.21486286]
[1745521204133,0.03,151.94,151.92,86.01760993]
[1745521204441,0.03,151.94,151.93,30.11074795]
[1745521204639,0.03,151.95,151.93,30.11074795]
[1745521204841,0.03,151.95,151.94,20.34139777]
[1745521205414,0.03,151.95,151.94,25.36578621]
[1745521205618,0.03,151.95,151.94,45.66020519]
[1745521206232,0.03,151.95,151.94,20.28684942]
[1745521207260,0.03,151.95,151.94,26.86839476]
[1745521207626,0.03,151.95,151.94,45.66020519]
[1745521212361,0.03,151.95,151.94,39.07865985]
[1745521212538,0.03,151.95,151.94,45.66020519]
[1745521212855,0.03,151.95,151.94,43.21929028]
[1745521213250,0.03,151.95,151.94,36.63774494]
[1745521213460,0.03,151.95,151.94,6.52699699]
[1745521213665,11.34893752,151.95,151.94,6.52699699]
[1745521214537,11.34893752,151.95,151.94,1.64477012]
[1745521214859,11.34893752,151.95,151.89,11.31893752]
[1745521215064,82.73,151.95,151.91,11.31893752]
[1745521215237,82.73,151.95,151.94,11.31893752]
[1745521215436,0.03,151.95,151.94,11.31893752]
[1745521215754,0.03,151.95,151.92,4.86712835]
[1745521215956,0.03,151.95,151.93,11.31893752]
[1745521216153,0.03,151.95,151.94,4.86712835]
[1745521217260,0.03,151.95,151.94,6.51199024]
[1745521217562,0.03,151.95,151.94,1.64486189]
[1745521217773,0.03,151.95,151.94,12.96379941]
[1745521218155,0.03,151.95,151.94,38.33715518]
[1745521218872,0.03,151.95,151.94,40.7701976]
[1745521219246,0.03,151.95,151.94,45.63587237]
[1745521220664,0.03,151.95,151.94,20.2625166]
[1745521220868,0.03,151.95,151.94,8.94357908]
[1745521221167,0.03,151.95,151.94,6.51053666]
[1745521221667,0.03,151.95,151.94,1.64486189]
[1745521222385,0.03,151.95,151.94,19.54534475]
[1745521222545,0.03,151.95,151.94,1.64486189]
[1745521223050,11.34893752,151.95,151.94,1.64486189]
[1745521224546,11.34893752,151.95,151.91,17.04661177]
[1745521224752,0.03,151.95,151.92,11.31893752]
[1745521225163,0.03,151.95,151.93,11.31893752]
[1745521225351,0.03,151.95,151.94,11.31893752]
[1745521225766,0.03,151.95,151.94,17.90048286]
[1745521226966,0.03,151.95,151.94,22.76617524]
[1745521227175,0.03,151.95,151.94,4.86569238]
[1745521227876,0.03,151.95,151.93,24.25403681]
[1745521228265,0.03,151.95,151.93,17.67214095]
[1745521228473,0.03,151.95,151.93,24.25400688]
[1745521228659,0.03,151.95,151.93,6.58186593]
[1745521228859,0.03,151.95,151.93,24.25400688]
[1745521231271,0.03,151.95,151.94,17.67214095]
[1745521232876,0.03,151.95,151.94,24.25368629]
[1745521233453,0.03,151.95,151.94,29.12189758]
[1745521233956,0.03,151.95,151.94,47.91370801]
[1745521234677,0.03,151.95,151.94,50.34789249]
[1745521235858,0.03,151.95,151.94,7.30239577]
[1745521236385,0.03,151.95,151.94,4.86821129]
[1745521237164,17.70214095,151.95,151.94,4.86821129]
[1745521237472,17.70214095,151.95,151.88,24.25611978]
[1745521237675,17.67214095,151.93,151.88,24.25611978]
[1745521237874,82.7,151.94,151.89,7.31213139]
[1745521237875,17.67214095,151.91,151.89,7.31213139]
[1745521238085,17.67214095,151.9,151.89,7.31213139]
[1745521238301,17.67214095,151.9,151.89,8.95766221]
[1745521238856,17.67214095,151.9,151.89,6.52028508]
[1745521239040,17.67214095,151.9,151.89,1.64553082]
[1745521240998,39.56,151.93,151.89,1.64553082]
[1745521241303,13.56,151.93,151.89,25.9013415]
[1745521241675,17.67214095,151.93,151.89,25.9013415]
[1745521241878,17.67214095,151.93,151.89,8.22920055]
[1745521242124,17.67214095,151.93,151.89,25.9013415]
[1745521242289,82.7,151.94,151.91,17.67214095]
[1745521242476,17.70214095,151.95,151.91,17.67214095]
[1745521242675,0.03,151.95,151.91,17.67214095]
[1745521243370,0.03,151.95,151.92,1.64553082]
[1745521244300,0.03,151.95,151.91,24.25477958]
[1745521245392,0.03,151.95,151.92,17.67214095]
[1745521245570,0.03,151.95,151.93,25.8992603]
[1745521245902,0.03,151.95,151.94,17.67214095]
[1745521246271,0.03,151.95,151.94,4.87464303]
[1745521246902,0.03,151.95,151.94,6.51978384]
[1745521247270,0.03,151.95,151.94,1.64514081]
[1745521249325,0.03,151.95,151.94,25.8988271]
[1745521249909,0.03,151.95,151.94,30.77369587]
[1745521252887,0.03,151.95,151.94,33.20951153]
[1745521259320,0.03,151.95,151.94,52.00132196]
[1745521261635,0.03,151.95,151.94,8.95582524]
[1745521261807,0.03,151.95,151.94,10.66250181]
[1745521262010,0.03,151.95,151.94,28.33464276]
[1745521263009,0.03,151.95,151.94,25.8988271]
[1745521263718,0.03,151.95,151.94,30.76879905]
[1745521264312,0.03,151.95,151.94,6.51511276]
[1745521264511,0.03,151.95,151.94,24.18725371]
[1745521264721,0.03,151.95,151.94,26.62253959]
[1745521265226,0.03,151.95,151.94,24.18725371]
[1745521265425,0.03,151.95,151.94,6.51511276]
[1745521265833,0.03,151.95,151.94,13.0966581]
[1745521266035,0.03,151.95,151.94,24.40450512]
[1745521266939,0.03,151.95,151.94,26.84020871]
[1745521269344,0.03,151.95,151.94,8.95081635]
[1745521269517,0.03,151.95,151.94,6.51511276]
[1745521271318,0.03,151.95,151.94,30.76659004]
[1745521273521,0.03,151.95,151.94,24.1850447]
[1745521273851,0.03,151.95,151.94,6.51511276]
[1745521274520,0.03,151.95,151.94,1.64514081]
[1745521277742,100.39993194,151.95,151.94,1.64514081]
[1745521278045,63.63713194,151.95,151.87,24.31734658]
[1745521278244,17.66993194,151.92,151.88,20.10991825]
[1745521278450,17.66993194,151.92,151.88,7.31982994]
[1745521278744,17.66993194,151.91,151.88,7.31982994]
[1745521278949,17.66993194,151.91,151.89,4.87984363]
[1745521279250,17.66993194,151.91,151.9,1.64545494]
[1745521279450,17.66993194,151.92,151.9,1.64545494]
[1745521279745,100.36993194,151.93,151.9,1.64545494]
[1745521280321,82.7,151.93,151.89,17.66993194]
[1745521280526,100.36993194,151.93,151.88,6.58406391]
[1745521280735,100.36993194,151.93,151.89,17.66993194]
[1745521282050,82.7,151.93,151.89,24.25360614]
[1745521282251,82.7,151.93,151.91,17.66993194]
[1745521282549,82.7,151.93,151.92,17.66993194]
[1745521282845,0.03,151.95,151.92,17.66993194]
[1745521283050,0.03,151.95,151.93,17.66993194]
[1745521283343,0.03,151.95,151.91,17.66993194]
[1745521283845,0.03,151.95,151.91,24.25274281]
[1745521284146,0.03,151.95,151.92,1.64515548]
[1745521285050,0.03,151.95,151.93,1.64515548]
[1745521285853,0.03,151.95,151.91,24.25263353]
[1745521286544,0.03,151.95,151.92,17.66993194]
[1745521287754,0.03,151.95,151.93,1.64520305]
[1745521289358,0.03,151.95,151.92,17.66993194]
[1745521289529,0.03,151.95,151.93,11.30992833]
[1745521289730,0.03,151.95,151.92,11.30992833]
[1745521290266,0.03,151.95,151.9,6.58327847]
[1745521290559,0.03,151.95,151.94,11.30992833]
[1745521291125,0.03,151.95,151.94,13.75046007]
[1745521291555,0.03,151.95,151.94,18.63179433]
[1745521291726,0.03,151.95,151.94,20.27665022]
[1745521292763,0.03,151.95,151.94,26.85819556]
[1745521294977,0.03,151.95,151.94,20.27665022]
[1745521295145,0.03,151.95,151.94,26.85819556]
[1745521303975,0.03,151.95,151.94,8.96672189]
[1745521304276,11.33992833,151.95,151.94,6.52619015]
[1745521304654,11.33992833,151.95,151.94,1.64485589]
[1745521305077,82.7,151.94,151.9,11.30992833]
[1745521305447,82.7,151.94,151.91,4.88410336]
[1745521306076,82.7,151.94,151.92,1.64519511]
[1745521306471,94.00992833,151.94,151.92,1.64519511]
[1745521307349,82.7,151.94,151.93,1.64519511]
[1745521309063,94.00992833,151.94,151.93,1.64519511]
[1745521309464,94.00992833,151.94,151.9,11.30992833]
[1745521310173,94.00992833,151.94,151.91,4.88438337]
[1745521310755,94.00992833,151.93,151.91,4.88438337]
[1745521310955,11.30992833,151.92,151.91,4.88438337]
[1745521311156,94.00992833,151.93,151.91,6.52975279]
[1745521311357,94.00992833,151.93,151.91,1.64536942]
[1745521311557,82.7,151.93,151.91,1.64536942]
[1745521311757,82.7,151.93,151.9,17.89313541]
[1745521311960,82.7,151.93,151.9,11.30992833]
[1745521312278,94.00992833,151.93,151.89,17.89344173]
[1745521312681,94.00992833,151.93,151.89,11.30992833]
[1745521312868,94.00992833,151.93,151.88,6.58395987]
[1745521313069,94.00992833,151.93,151.88,17.8938882]
[1745521313361,94.00992833,151.93,151.89,15.55432727]
[1745521313765,94.00992833,151.93,151.89,8.97074852]
[1745521314385,94.00992833,151.93,151.9,1.64534441]
[1745521314688,94.00992833,151.93,151.9,6.52877376]
[1745521315562,94.00992833,151.93,151.91,1.64534441]
[1745521316267,11.30992833,151.92,151.91,1.64534441]
[1745521316463,11.30992833,151.92,151.87,6.64752628]
[1745521316661,11.30992833,151.92,151.87,17.95745461]
[1745521316868,11.30992833,151.92,151.87,11.37292833]
[1745521317064,11.30992833,151.92,151.88,4.88134287]
[1745521317260,11.30992833,151.89,151.88,4.88134287]
[1745521317675,11.30992833,151.9,151.88,6.5270439]
[1745521317880,89.28259901,151.92,151.88,6.5270439]
[1745521318088,11.30992833,151.9,151.88,6.5270439]
[1745521318262,94.00992833,151.89,151.88,6.5270439]
[1745521318668,94.00992833,151.89,151.88,1.64570103]
[1745521319594,82.7,151.89,151.88,1.64570103]
[1745521319766,94.00992833,151.89,151.88,1.64570103]
[1745521320474,82.7,151.89,151.88,1.64570103]
[1745521320879,82.7,151.89,151.87,0.063]
[1745521321073,82.7,151.89,151.88,11.30992833]
[1745521321571,82.7,151.89,151.88,16.18271385]
[1745521321776,82.7,151.92,151.88,16.18271385]
[1745521321976,82.7,151.92,151.89,1.64553683]
[1745521323193,82.7,151.92,151.89,11.30992833]
[1745521323809,82.7,151.92,151.9,11.30992833]
[1745521324012,82.7,151.92,151.9,12.95542712]
[1745521324177,82.7,151.92,151.9,1.64549879]
[1745521325412,11.30992833,151.91,151.9,1.64549879]
[1745521325710,11.30992833,151.91,151.87,11.37292833]
[1745521325907,94.00992833,151.92,151.87,17.9574747]
[1745521326289,82.7,151.92,151.89,11.30992833]
[1745521327687,82.7,151.92,151.9,1.64543575]
[1745521328010,82.7,151.92,151.9,19.53852441]
[1745521328503,82.7,151.92,151.9,12.95536408]
[1745521328697,82.7,151.92,151.89,17.89347938]
[1745521329720,82.7,151.92,151.9,4.87023607]
[1745521330784,82.7,151.92,151.89,17.89356531]
[1745521332216,82.7,151.92,151.9,1.64533976]
[1745521333013,82.7,151.92,151.9,12.95526809]
[1745521333417,82.7,151.92,151.91,1.64533976]
[1745521335610,94.00992833,151.92,151.91,1.64533976]
[1745521336200,82.7,151.92,151.91,1.64533976]
[1745521337620,82.7,151.92,151.9,1.64533976]
[1745521338803,82.7,151.92,151.89,17.89355936]
[1745521340422,82.7,151.92,151.9,4.87424547]
[1745521340729,82.7,151.92,151.91,1.6452949]
[1745521344231,82.7,151.92,151.91,6.52709425]
[1745521344544,11.30992833,151.92,151.91,6.52709425]
[1745521345038,11.30992833,151.92,151.91,4.88179935]
[1745521345215,11.30992833,151.92,151.87,0.063]
[1745521345402,11.30992833,151.9,151.87,0.063]
[1745521345801,11.30992833,151.88,151.87,0.063]
[1745521346032,11.30992833,151.88,151.87,0.4585]
[1745521346227,11.30992833,151.88,151.87,2.10428177]
[1745521346639,11.30992833,151.89,151.87,2.10428177]
[1745521347133,11.30992833,151.9,151.88,1.64578177]
[1745521348108,82.7,151.89,151.88,1.64578177]
[1745521351819,94.00992833,151.89,151.88,1.64578177]
[1745521352436,82.7,151.89,151.88,1.64578177]
[1745521353947,11.30992833,151.9,151.88,1.64578177]
[1745521354642,11.30992833,151.89,151.87,0.4585]
[1745521354849,11.30992833,151.88,151.87,0.4585]
[1745521355448,46.12289456,151.91,151.87,0.4585]
[1745521355449,11.30992833,151.89,151.87,2.10431152]
[1745521356144,46.12289456,151.91,151.87,2.10431152]
[1745521356363,37.30992833,151.88,151.87,2.10431152]
[1745521357062,37.30992833,151.88,151.87,0.4585]
[1745521357830,43.8940737,151.88,151.87,0.4585]
[1745521359439,62.68588413,151.88,151.87,0.4585]
[1745521359745,43.15158413,151.88,151.87,0.4585]
[1745521359939,108.2415,151.86,151.85,0.063]
[1745521360151,133.09142833,151.86,151.85,0.063]
[1745521361845,139.67644084,151.86,151.85,0.063]
[1745521362551,76.22675127,151.86,151.85,0.063]
[1745521363146,39.54,151.86,151.85,0.063]
[1745521363455,50.84992833,151.86,151.85,0.063]
[1745521369462,57.43494084,151.86,151.85,0.063]
[1745521371263,76.22675127,151.86,151.85,0.063]
[1745521371559,50.22675127,151.86,151.85,0.063]
[1745521375765,31.43494084,151.86,151.85,0.063]
[1745521376862,50.22675127,151.86,151.85,0.063]
[1745521384642,44.64964886,151.8,151.79,0.063]
[1745521384863,69.64173876,151.8,151.79,0.063]
[1745521385880,50.22935404,151.8,151.79,0.063]
[1745521388266,44.64964886,151.77,151.75,0.063]
[1745521388466,94.00992833,151.76,151.75,0.063]
[1745521388771,120.00992833,151.76,151.75,0.063]
[1745521389158,108.7,151.76,151.75,0.063]
[1745521389783,82.7,151.76,151.75,0.063]
[1745521391068,89.2893516,151.76,151.75,0.063]
[1745521391873,100.59927993,151.76,151.75,0.063]
[1745521392176,89.2893516,151.76,151.75,0.063]
[1745521392475,82.7,151.76,151.75,0.063]
[1745521392976,94.00992833,151.76,151.75,0.063]
[1745521393582,100.59927993,151.76,151.75,0.063]
[1745521393757,94.00992833,151.76,151.75,0.063]
[1745521394271,62.69109036,151.76,151.75,0.063]
[1745521395477,43.89927993,151.76,151.75,0.063]
[1745521402270,37.30992833,151.76,151.75,0.063]
[1745521402677,43.89927993,151.76,151.75,0.063]
[1745521403289,37.30992833,151.76,151.75,0.063]
[1745521405182,43.89927993,151.76,151.75,0.063]
[1745521405889,62.69109036,151.76,151.75,0.063]
[1745521406778,36.69109036,151.76,151.75,0.063]
[1745521406988,81.93080368,151.76,151.75,0.063]
[1745521407297,18.79181043,151.75,151.74,0.063]
[1745521407466,42.05006328,151.75,151.74,0.063]
[1745521407666,42.05006328,151.75,151.73,0.063]
[1745521407889,112.80173876,151.74,151.73,0.063]
[1745521409696,119.39195887,151.74,151.73,0.063]
[1745521410990,119.39195887,151.74,151.72,0.063]
[1745521410991,18.79181043,151.73,151.72,0.063]